[Event "Early-Titled-Tuesday-Blitz-June-18-2024"]
[Site "Chess.com"]
[Date "2024.06.18"]
[Round "5"]
[White "vugarrasulov"]
[Black "Evan_Attaker"]
[Result "0-1"]
[WhiteElo "2958"]
[BlackElo "2711"]
[TimeControl "180+1"]
[EndTime "8:58:59 PDT"]
[Termination "Evan_Attaker won on time"]

1. a3 {[%clk 0:03:00.9]} 1... g6 {[%clk 0:02:53.5]} 2. e4 {[%clk 0:03:00]} 2...
Bg7 {[%clk 0:02:52.7]} 3. Nf3 {[%clk 0:03:00.4]} 3... c5 {[%clk 0:02:52]} 4. Nc3
{[%clk 0:02:59]} 4... Nc6 {[%clk 0:02:47.2]} 5. b4 {[%clk 0:02:55.9]} 5... cxb4
{[%clk 0:02:46.6]} 6. axb4 {[%clk 0:02:56.8]} 6... Nxb4 {[%clk 0:02:47.2]} 7.
Ba3 {[%clk 0:02:54.1]} 7... Nc6 {[%clk 0:02:42.9]} 8. Bc4 {[%clk 0:02:53.7]}
8... d6 {[%clk 0:02:37.9]} 9. h3 {[%clk 0:02:52.6]} 9... Nf6 {[%clk 0:02:21.2]}
10. O-O {[%clk 0:02:52.9]} 10... O-O {[%clk 0:02:20.5]} 11. d4 {[%clk
0:02:46.7]} 11... Nxe4 {[%clk 0:02:19.3]} 12. Nxe4 {[%clk 0:02:47.1]} 12... d5
{[%clk 0:02:19.1]} 13. Bd3 {[%clk 0:02:45.4]} 13... dxe4 {[%clk 0:02:18.3]} 14.
Bxe4 {[%clk 0:02:46.3]} 14... Nxd4 {[%clk 0:02:12.6]} 15. Nxd4 {[%clk
0:02:46.3]} 15... Qxd4 {[%clk 0:02:11]} 16. Qf3 {[%clk 0:02:45.9]} 16... Qf6
{[%clk 0:02:03.5]} 17. Bxb7 {[%clk 0:02:42.4]} 17... Qxf3 {[%clk 0:01:45.7]} 18.
Bxf3 {[%clk 0:02:42]} 18... Rb8 {[%clk 0:01:45.7]} 19. Bxe7 {[%clk 0:02:27.3]}
19... Bxa1 {[%clk 0:01:37.2]} 20. Bxf8 {[%clk 0:02:27.5]} 20... Bc3 {[%clk
0:01:30.1]} 21. Bd6 {[%clk 0:02:25.1]} 21... Rb2 {[%clk 0:01:18.3]} 22. Bc5
{[%clk 0:02:09.5]} 22... a5 {[%clk 0:01:14.4]} 23. Rd1 {[%clk 0:02:09]} 23...
Kg7 {[%clk 0:01:07.5]} 24. Rd8 {[%clk 0:02:04.7]} 24... Be6 {[%clk 0:00:53.6]}
25. Bf8+ {[%clk 0:01:55.6]} 25... Kf6 {[%clk 0:00:51.4]} 26. g4 {[%clk
0:01:56.5]} 26... Rxc2 {[%clk 0:00:39.3]} 27. h4 {[%clk 0:01:56.3]} 27... g5
{[%clk 0:00:32.7]} 28. h5 {[%clk 0:01:50.3]} 28... Rd2 {[%clk 0:00:27.4]} 29.
Re8 {[%clk 0:01:39.2]} 29... Bb4 {[%clk 0:00:20.1]} 30. Kg2 {[%clk 0:01:12.5]}
30... Bxf8 {[%clk 0:00:19.5]} 31. Rxf8 {[%clk 0:01:13.4]} 31... a4 {[%clk
0:00:19.5]} 32. Ra8 {[%clk 0:01:13]} 32... Bb3 {[%clk 0:00:18.4]} 33. Ra6+
{[%clk 0:01:10.5]} 33... Ke5 {[%clk 0:00:17.3]} 34. h6 {[%clk 0:01:11]} 34...
Rd6 {[%clk 0:00:17.4]} 35. Ra5+ {[%clk 0:01:10]} 35... Kd4 {[%clk 0:00:15.8]}
36. Rxg5 {[%clk 0:01:05.8]} 36... a3 {[%clk 0:00:15.9]} 37. Ra5 {[%clk
0:01:03.1]} 37... a2 {[%clk 0:00:15.9]} 38. g5 {[%clk 0:01:03.7]} 38... Rg6
{[%clk 0:00:14.2]} 39. Bh5 {[%clk 0:00:34.4]} 39... Rxg5+ {[%clk 0:00:14.3]} 40.
Rxg5 {[%clk 0:00:35.3]} 40... a1=Q {[%clk 0:00:14.4]} 41. Bf3 {[%clk 0:00:32.3]}
41... Qc1 {[%clk 0:00:13.3]} 42. Rb5 {[%clk 0:00:28.9]} 42... Bc4 {[%clk
0:00:11]} 43. Rh5 {[%clk 0:00:29.4]} 43... Qf4 {[%clk 0:00:10.3]} 44. Rh3 {[%clk
0:00:24]} 44... Qg5+ {[%clk 0:00:09.7]} 45. Kh2 {[%clk 0:00:22.9]} 45... Be6
{[%clk 0:00:09.3]} 46. Rg3 {[%clk 0:00:19.9]} 46... Qxh6+ {[%clk 0:00:08.9]} 47.
Kg1 {[%clk 0:00:20.8]} 47... Qf4 {[%clk 0:00:09.3]} 48. Bg2 {[%clk 0:00:20.3]}
48... Bd5 {[%clk 0:00:08.5]} 49. Bf1 {[%clk 0:00:17.3]} 49... h5 {[%clk
0:00:08.3]} 50. Rd3+ {[%clk 0:00:14.7]} 50... Ke5 {[%clk 0:00:08]} 51. Rh3
{[%clk 0:00:13.5]} 51... h4 {[%clk 0:00:08.1]} 52. Re3+ {[%clk 0:00:13.7]} 52...
Kf6 {[%clk 0:00:07.8]} 53. Bh3 {[%clk 0:00:14.6]} 53... Be6 {[%clk 0:00:07.2]}
54. Bg2 {[%clk 0:00:14.1]} 54... h3 {[%clk 0:00:06.7]} 55. Bxh3 {[%clk
0:00:13.9]} 55... Qxe3 {[%clk 0:00:07.4]} 0-1

[Event "Early-Titled-Tuesday-Blitz-June-18-2024"]
[Site "Chess.com"]
[Date "2024.06.18"]
[Round "5"]
[White "ilqar_74"]
[Black "KubaGepard"]
[Result "0-1"]
[WhiteElo "2833"]
[BlackElo "2627"]
[TimeControl "180+1"]
[EndTime "8:59:01 PDT"]
[Termination "KubaGepard won by resignation"]

1. e4 {[%clk 0:03:00.9]} 1... e5 {[%clk 0:02:15]} 2. Nf3 {[%clk 0:02:59.8]} 2...
Nc6 {[%clk 0:02:14.9]} 3. Bb5 {[%clk 0:03:00.1]} 3... a6 {[%clk 0:02:14.7]} 4.
Ba4 {[%clk 0:03:00.3]} 4... Nf6 {[%clk 0:02:15.1]} 5. O-O {[%clk 0:03:00.6]}
5... Be7 {[%clk 0:02:15.8]} 6. c3 {[%clk 0:03:00.6]} 6... Nxe4 {[%clk
0:02:15.2]} 7. Re1 {[%clk 0:02:57.7]} 7... Nc5 {[%clk 0:02:14]} 8. Bxc6 {[%clk
0:02:57.7]} 8... dxc6 {[%clk 0:02:14.2]} 9. Nxe5 {[%clk 0:02:58.4]} 9... Nd3
{[%clk 0:02:08.6]} 10. Nxd3 {[%clk 0:02:49.7]} 10... Qxd3 {[%clk 0:02:09.5]} 11.
Qe2 {[%clk 0:02:50.3]} 11... Qxe2 {[%clk 0:02:03.1]} 12. Rxe2 {[%clk 0:02:50.8]}
12... Be6 {[%clk 0:02:03.7]} 13. d4 {[%clk 0:02:51]} 13... O-O-O {[%clk
0:02:04.1]} 14. Be3 {[%clk 0:02:36]} 14... c5 {[%clk 0:02:01.5]} 15. Nd2 {[%clk
0:02:35.8]} 15... cxd4 {[%clk 0:01:59.3]} 16. Bxd4 {[%clk 0:02:36.7]} 16... Rhg8
{[%clk 0:01:45.3]} 17. Ne4 {[%clk 0:02:33]} 17... g6 {[%clk 0:01:44.5]} 18. a3
{[%clk 0:02:23.7]} 18... Rd5 {[%clk 0:01:41.1]} 19. Bf6 {[%clk 0:02:12.6]} 19...
Bc5 {[%clk 0:01:28.6]} 20. Nxc5 {[%clk 0:01:24]} 20... Rxc5 {[%clk 0:01:27.6]}
21. Rae1 {[%clk 0:01:23.8]} 21... Rf5 {[%clk 0:01:26.5]} 22. Bd4 {[%clk
0:01:21.7]} 22... Rd8 {[%clk 0:01:22.2]} 23. h3 {[%clk 0:01:21.8]} 23... Rfd5
{[%clk 0:01:16.2]} 24. Bf6 {[%clk 0:01:15.7]} 24... R8d6 {[%clk 0:01:14.2]} 25.
Be5 {[%clk 0:01:13.4]} 25... Rd7 {[%clk 0:01:13.4]} 26. Bd4 {[%clk 0:01:10]}
26... c5 {[%clk 0:01:12.3]} 27. Be3 {[%clk 0:01:10.2]} 27... Kc7 {[%clk
0:01:09.8]} 28. b4 {[%clk 0:01:08.3]} 28... Rd3 {[%clk 0:01:00.9]} 29. Rc2
{[%clk 0:00:59.9]} 29... c4 {[%clk 0:00:59.1]} 30. Bd4 {[%clk 0:00:57.9]} 30...
Bf5 {[%clk 0:00:57.1]} 31. Rce2 {[%clk 0:00:55.2]} 31... Be6 {[%clk 0:00:49.2]}
32. a4 {[%clk 0:00:49.2]} 32... Kc6 {[%clk 0:00:47.8]} 33. Re5 {[%clk
0:00:48.4]} 33... Rd5 {[%clk 0:00:42.5]} 34. Rxd5 {[%clk 0:00:48.4]} 34... Kxd5
{[%clk 0:00:41.4]} 35. Re5+ {[%clk 0:00:45.1]} 35... Kd6 {[%clk 0:00:40.9]} 36.
a5 {[%clk 0:00:44.3]} 36... Bd5 {[%clk 0:00:29.6]} 37. Re8 {[%clk 0:00:39.4]}
37... h5 {[%clk 0:00:25.6]} 38. Rd8+ {[%clk 0:00:33.1]} 38... Ke6 {[%clk
0:00:25.4]} 39. Rc8 {[%clk 0:00:26.9]} 39... Bc6 {[%clk 0:00:23.1]} 40. Kf1
{[%clk 0:00:17]} 40... Rd2 {[%clk 0:00:18.2]} 41. Rd8 {[%clk 0:00:15.5]} 41...
Rd1+ {[%clk 0:00:17.6]} 42. Ke2 {[%clk 0:00:15.6]} 42... Rd3 {[%clk 0:00:18]}
43. f3 {[%clk 0:00:10.8]} 43... Ke7 {[%clk 0:00:17.3]} 44. Rc8 {[%clk
0:00:10.6]} 44... Kd7 {[%clk 0:00:17.1]} 45. Rf8 {[%clk 0:00:10]} 45... Ke6
{[%clk 0:00:17.3]} 46. Rb8 {[%clk 0:00:07]} 46... Kd7 {[%clk 0:00:16.1]} 47. Rh8
{[%clk 0:00:06.2]} 47... Ke7 {[%clk 0:00:16]} 48. h4 {[%clk 0:00:06.4]} 48...
Bb5 {[%clk 0:00:15.4]} 49. Bc5+ {[%clk 0:00:06.6]} 49... Ke6 {[%clk 0:00:15.4]}
50. Bd4 {[%clk 0:00:06.5]} 50... Bc6 {[%clk 0:00:09.9]} 51. Rd8 {[%clk
0:00:06.4]} 51... Ke7 {[%clk 0:00:09.7]} 52. Rg8 {[%clk 0:00:06.2]} 52... Ke6
{[%clk 0:00:09.9]} 53. Kf2 {[%clk 0:00:06.8]} 53... Rd2+ {[%clk 0:00:09.4]} 54.
Kg1 {[%clk 0:00:04.5]} 54... Rxd4 {[%clk 0:00:07.2]} 55. cxd4 {[%clk 0:00:04.8]}
55... c3 {[%clk 0:00:07.9]} 56. d5+ {[%clk 0:00:05.4]} 56... Kxd5 {[%clk
0:00:08]} 57. Rd8+ {[%clk 0:00:04.9]} 57... Kc4 {[%clk 0:00:08.3]} 58. Rd1
{[%clk 0:00:01.7]} 58... c2 {[%clk 0:00:08.4]} 0-1

[Event "Early-Titled-Tuesday-Blitz-June-18-2024"]
[Site "Chess.com"]
[Date "2024.06.18"]
[Round "5"]
[White "IlanSchnaider"]
[Black "FairChess_on_YouTube"]
[Result "0-1"]
[WhiteElo "2835"]
[BlackElo "3122"]
[TimeControl "180+1"]
[EndTime "8:59:03 PDT"]
[Termination "FairChess_on_YouTube won on time"]

1. e4 {[%clk 0:03:00.9]} 1... c5 {[%clk 0:02:55.7]} 2. Nf3 {[%clk 0:03:00.7]}
2... Nc6 {[%clk 0:02:53.6]} 3. Bb5 {[%clk 0:03:00.1]} 3... Nf6 {[%clk
0:02:52.7]} 4. Nc3 {[%clk 0:02:56.9]} 4... g6 {[%clk 0:02:47.3]} 5. O-O {[%clk
0:02:55.9]} 5... Bg7 {[%clk 0:02:47.3]} 6. Re1 {[%clk 0:02:54.3]} 6... O-O
{[%clk 0:02:46.5]} 7. Bf1 {[%clk 0:02:53.6]} 7... d5 {[%clk 0:02:39.7]} 8. exd5
{[%clk 0:02:51.3]} 8... Nxd5 {[%clk 0:02:39.2]} 9. h3 {[%clk 0:02:11.2]} 9... b6
{[%clk 0:02:32.2]} 10. Bc4 {[%clk 0:01:52.1]} 10... Nc7 {[%clk 0:02:10.4]} 11.
d3 {[%clk 0:01:38.6]} 11... Na5 {[%clk 0:02:07.5]} 12. Bg5 {[%clk 0:01:20.8]}
12... Nxc4 {[%clk 0:01:52.8]} 13. dxc4 {[%clk 0:00:47.7]} 13... Ne6 {[%clk
0:01:39.1]} 14. Nd5 {[%clk 0:00:43.3]} 14... Nxg5 {[%clk 0:01:04.4]} 15. Nxe7+
{[%clk 0:00:41]} 15... Kh8 {[%clk 0:01:04.7]} 16. Nxg5 {[%clk 0:00:28.4]} 16...
Qxd1 {[%clk 0:01:04.4]} 17. Raxd1 {[%clk 0:00:28.3]} 17... Bf6 {[%clk
0:01:03.2]} 18. Nf3 {[%clk 0:00:16.8]} 18... Bxb2 {[%clk 0:00:58]} 19. Nxc8
{[%clk 0:00:12.6]} 19... Raxc8 {[%clk 0:00:58.9]} 20. Rd7 {[%clk 0:00:12.9]}
20... Kg8 {[%clk 0:00:45.4]} 21. Rxa7 {[%clk 0:00:12.2]} 21... Ra8 {[%clk
0:00:46]} 22. Rb7 {[%clk 0:00:12.2]} 22... Rxa2 {[%clk 0:00:42.5]} 23. Rxb6
{[%clk 0:00:12.4]} 23... Bc3 {[%clk 0:00:42.7]} 24. Re2 {[%clk 0:00:12.6]} 24...
Ra4 {[%clk 0:00:41.1]} 25. Ne5 {[%clk 0:00:11.7]} 25... Re8 {[%clk 0:00:34.3]}
26. f4 {[%clk 0:00:11.2]} 26... Rxc4 {[%clk 0:00:31.7]} 27. Nxc4 {[%clk
0:00:09.9]} 27... Rxe2 {[%clk 0:00:32.6]} 28. Nd6 {[%clk 0:00:04.8]} 28... Rxc2
{[%clk 0:00:25]} 29. Rb8+ {[%clk 0:00:05.2]} 29... Kg7 {[%clk 0:00:24.8]} 30.
Rb7 {[%clk 0:00:06.1]} 30... Kf6 {[%clk 0:00:20.6]} 31. Ne4+ {[%clk 0:00:05.7]}
31... Kf5 {[%clk 0:00:13.5]} 32. Nxc3 {[%clk 0:00:05.5]} 32... Rxc3 {[%clk
0:00:14.4]} 33. Rxf7+ {[%clk 0:00:05.2]} 33... Ke4 {[%clk 0:00:15]} 34. Rxh7
{[%clk 0:00:05.5]} 34... Kxf4 {[%clk 0:00:15]} 35. Kh2 {[%clk 0:00:06.1]} 35...
c4 {[%clk 0:00:15.3]} 36. Rc7 {[%clk 0:00:06.3]} 36... Rc2 {[%clk 0:00:14.9]}
37. Rc6 {[%clk 0:00:05.8]} 37... Kf5 {[%clk 0:00:11.1]} 38. Rc5+ {[%clk
0:00:05.8]} 38... Ke4 {[%clk 0:00:10.7]} 39. Rc6 {[%clk 0:00:05.4]} 39... c3
{[%clk 0:00:10.9]} 40. Rxg6 {[%clk 0:00:04.4]} 40... Rb2 {[%clk 0:00:08.8]} 41.
Rc6 {[%clk 0:00:04.3]} 41... Kd3 {[%clk 0:00:09.3]} 42. h4 {[%clk 0:00:04.2]}
42... c2 {[%clk 0:00:09.5]} 43. Rd6+ {[%clk 0:00:03.2]} 43... Ke2 {[%clk
0:00:07.6]} 44. Rc6 {[%clk 0:00:03.2]} 44... Kd2 {[%clk 0:00:06.5]} 45. Rd6+
{[%clk 0:00:03.8]} 45... Ke3 {[%clk 0:00:04.5]} 46. Rc6 {[%clk 0:00:03.7]} 46...
Kd3 {[%clk 0:00:03.8]} 47. h5 {[%clk 0:00:02.4]} 47... Rb4 {[%clk 0:00:03.6]}
48. Kh3 {[%clk 0:00:02.1]} 48... Rc4 {[%clk 0:00:03.7]} 49. Rd6+ {[%clk
0:00:02.3]} 49... Kc3 {[%clk 0:00:04]} 50. h6 {[%clk 0:00:01.8]} 50... c1=Q
{[%clk 0:00:04.6]} 51. h7 {[%clk 0:00:01.7]} 51... Qh1+ {[%clk 0:00:04.7]} 52.
Kg3 {[%clk 0:00:02.3]} 52... Qxh7 {[%clk 0:00:05.6]} 53. Rd5 {[%clk 0:00:01.2]}
53... Qg8+ {[%clk 0:00:05.5]} 54. Rg5 {[%clk 0:00:01]} 54... Qxg5+ {[%clk
0:00:05.5]} 55. Kh2 {[%clk 0:00:01.7]} 55... Rg4 {[%clk 0:00:05.4]} 56. Kg1
{[%clk 0:00:02.1]} 56... Rxg2+ {[%clk 0:00:05.5]} 57. Kh1 {[%clk 0:00:03]} 57...
Rg1+ {[%clk 0:00:05.8]} 0-1

[Event "Early-Titled-Tuesday-Blitz-June-18-2024"]
[Site "Chess.com"]
[Date "2024.06.18"]
[Round "5"]
[White "koncheto"]
[Black "Rosh1610"]
[Result "0-1"]
[WhiteElo "2628"]
[BlackElo "2481"]
[TimeControl "180+1"]
[EndTime "8:59:03 PDT"]
[Termination "Rosh1610 won on time"]

1. e4 {[%clk 0:03:00.9]} 1... c5 {[%clk 0:02:45.7]} 2. Nf3 {[%clk 0:02:59]} 2...
d6 {[%clk 0:02:45.8]} 3. d4 {[%clk 0:02:59.2]} 3... cxd4 {[%clk 0:02:45.8]} 4.
Nxd4 {[%clk 0:03:00.1]} 4... Nf6 {[%clk 0:02:45.4]} 5. f3 {[%clk 0:03:00.2]}
5... e6 {[%clk 0:02:42.7]} 6. c4 {[%clk 0:03:00.1]} 6... Be7 {[%clk 0:02:42.2]}
7. Nc3 {[%clk 0:03:00.2]} 7... Bd7 {[%clk 0:02:39.8]} 8. Be2 {[%clk 0:02:59.6]}
8... Nc6 {[%clk 0:02:40]} 9. Be3 {[%clk 0:02:59.4]} 9... O-O {[%clk 0:02:39.1]}
10. O-O {[%clk 0:02:57.6]} 10... Rc8 {[%clk 0:02:38.7]} 11. Rc1 {[%clk
0:02:56.2]} 11... a6 {[%clk 0:02:33.3]} 12. Qd2 {[%clk 0:02:54.5]} 12... Nxd4
{[%clk 0:02:33]} 13. Bxd4 {[%clk 0:02:53.6]} 13... Bc6 {[%clk 0:02:33.6]} 14.
Rfd1 {[%clk 0:02:52.8]} 14... Nd7 {[%clk 0:02:29.8]} 15. Be3 {[%clk 0:02:47]}
15... Ne5 {[%clk 0:02:06.7]} 16. f4 {[%clk 0:02:34.6]} 16... Nd7 {[%clk
0:02:06.1]} 17. b4 {[%clk 0:02:31.8]} 17... Nf6 {[%clk 0:02:04.1]} 18. Bf3
{[%clk 0:02:17.7]} 18... b5 {[%clk 0:01:42.9]} 19. e5 {[%clk 0:01:58.6]} 19...
dxe5 {[%clk 0:01:06.1]} 20. fxe5 {[%clk 0:01:57.4]} 20... Bxf3 {[%clk
0:01:06.4]} 21. exf6 {[%clk 0:01:45.4]} 21... Bxd1 {[%clk 0:01:05.6]} 22. fxe7
{[%clk 0:01:28.6]} 22... Qxe7 {[%clk 0:01:06.5]} 23. Rxd1 {[%clk 0:01:02.6]}
23... Rxc4 {[%clk 0:01:06.5]} 24. Bc5 {[%clk 0:00:59.8]} 24... Rxc5 {[%clk
0:01:06.8]} 25. bxc5 {[%clk 0:01:00.2]} 25... Qxc5+ {[%clk 0:01:07.7]} 26. Kh1
{[%clk 0:00:59.2]} 26... h6 {[%clk 0:01:07.3]} 27. h3 {[%clk 0:00:59.3]} 27...
Rc8 {[%clk 0:01:05.9]} 28. Ne4 {[%clk 0:00:57.3]} 28... Qe5 {[%clk 0:01:03.3]}
29. Re1 {[%clk 0:00:50]} 29... Qc7 {[%clk 0:00:56]} 30. Qe2 {[%clk 0:00:39.8]}
30... f5 {[%clk 0:00:49.1]} 31. Nf2 {[%clk 0:00:29.3]} 31... Re8 {[%clk
0:00:48.8]} 32. Nd3 {[%clk 0:00:28.1]} 32... Qd6 {[%clk 0:00:41.5]} 33. Ne5
{[%clk 0:00:25.4]} 33... Rc8 {[%clk 0:00:31.4]} 34. Qh5 {[%clk 0:00:20.1]} 34...
Qe7 {[%clk 0:00:28.2]} 35. Qg6 {[%clk 0:00:15.1]} 35... Qf6 {[%clk 0:00:27.4]}
36. Qg3 {[%clk 0:00:15.5]} 36... Kh7 {[%clk 0:00:21.9]} 37. Qa3 {[%clk
0:00:14.7]} 37... Qh4 {[%clk 0:00:19.2]} 38. Rf1 {[%clk 0:00:08.3]} 38... Qe4
{[%clk 0:00:15.7]} 39. Qd6 {[%clk 0:00:05.6]} 39... Rc2 {[%clk 0:00:15.4]} 40.
Rg1 {[%clk 0:00:04.6]} 40... Re2 {[%clk 0:00:13.3]} 41. Nd7 {[%clk 0:00:02.6]}
41... Re3 {[%clk 0:00:13.1]} 42. Kh2 {[%clk 0:00:01.5]} 42... Rd3 {[%clk
0:00:10.5]} 43. Qe7 {[%clk 0:00:01.7]} 43... Qf4+ {[%clk 0:00:09.9]} 44. Kh1
{[%clk 0:00:01.8]} 44... Qg5 {[%clk 0:00:03.9]} 45. Nf8+ {[%clk 0:00:01.7]}
45... Kg8 {[%clk 0:00:04.1]} 46. Qe8 {[%clk 0:00:01.4]} 46... Rd8 {[%clk
0:00:03.8]} 47. Qxe6+ {[%clk 0:00:01.6]} 47... Kxf8 {[%clk 0:00:03.9]} 48. Qxa6
{[%clk 0:00:02.5]} 48... g6 {[%clk 0:00:04]} 49. Qxb5 {[%clk 0:00:02.6]} 49...
Re8 {[%clk 0:00:03.7]} 50. Qb4+ {[%clk 0:00:02.9]} 50... Qe7 {[%clk 0:00:02.8]}
51. Qb6 {[%clk 0:00:02.6]} 51... Kg7 {[%clk 0:00:03.2]} 52. Qf2 {[%clk
0:00:02.7]} 52... Qe6 {[%clk 0:00:03.6]} 53. Ra1 {[%clk 0:00:02.3]} 53... Re7
{[%clk 0:00:04.2]} 54. a4 {[%clk 0:00:02.6]} 54... Qe5 {[%clk 0:00:04.7]} 55.
Qa2 {[%clk 0:00:01.9]} 55... Rb7 {[%clk 0:00:03.2]} 56. a5 {[%clk 0:00:01.4]}
56... Rb2 {[%clk 0:00:03.7]} 57. Qc4 {[%clk 0:00:01.1]} 57... Rxg2 {[%clk
0:00:02.7]} 0-1

[Event "Early-Titled-Tuesday-Blitz-June-18-2024"]
[Site "Chess.com"]
[Date "2024.06.18"]
[Round "5"]
[White "maracayo"]
[Black "InadaC"]
[Result "1-0"]
[WhiteElo "2412"]
[BlackElo "2242"]
[TimeControl "180+1"]
[EndTime "8:59:06 PDT"]
[Termination "maracayo won by resignation"]

1. e4 {[%clk 0:03:00.9]} 1... e6 {[%clk 0:02:58.9]} 2. Nf3 {[%clk 0:02:59.6]}
2... d5 {[%clk 0:02:57.1]} 3. d3 {[%clk 0:02:59.5]} 3... dxe4 {[%clk 0:02:56.7]}
4. dxe4 {[%clk 0:02:58.5]} 4... Qxd1+ {[%clk 0:02:57.6]} 5. Kxd1 {[%clk
0:02:58.6]} 5... Bc5 {[%clk 0:02:57.5]} 6. Ke1 {[%clk 0:02:48.4]} 6... Nf6
{[%clk 0:02:55.8]} 7. Bd3 {[%clk 0:02:46.7]} 7... Nc6 {[%clk 0:02:55.3]} 8. c3
{[%clk 0:02:39]} 8... O-O {[%clk 0:02:51.2]} 9. h3 {[%clk 0:02:38.8]} 9... Rd8
{[%clk 0:02:50.2]} 10. Bc2 {[%clk 0:02:35.9]} 10... e5 {[%clk 0:02:47.3]} 11.
Ke2 {[%clk 0:02:31.1]} 11... Be6 {[%clk 0:02:45.3]} 12. Nbd2 {[%clk 0:02:30.1]}
12... h6 {[%clk 0:02:41.4]} 13. b4 {[%clk 0:02:28.3]} 13... Bd6 {[%clk
0:02:32.1]} 14. Bb3 {[%clk 0:02:21]} 14... Bd7 {[%clk 0:02:27.7]} 15. Re1 {[%clk
0:02:09.5]} 15... a5 {[%clk 0:02:23.5]} 16. b5 {[%clk 0:02:07.3]} 16... Ne7
{[%clk 0:02:22.5]} 17. a4 {[%clk 0:02:03.1]} 17... c6 {[%clk 0:02:19.5]} 18. Nc4
{[%clk 0:01:28]} 18... Be6 {[%clk 0:01:50.5]} 19. Nfd2 {[%clk 0:01:03.8]} 19...
cxb5 {[%clk 0:01:47.5]} 20. axb5 {[%clk 0:00:56.8]} 20... Ng6 {[%clk 0:01:32.1]}
21. Nxd6 {[%clk 0:00:43]} 21... Nf4+ {[%clk 0:01:18.2]} 22. Kf1 {[%clk
0:00:42.6]} 22... Rxd6 {[%clk 0:01:17.1]} 23. Bxe6 {[%clk 0:00:38.3]} 23... Rxe6
{[%clk 0:01:00.9]} 24. Nc4 {[%clk 0:00:31.1]} 24... a4 {[%clk 0:00:58.8]} 25.
Bxf4 {[%clk 0:00:24.6]} 25... exf4 {[%clk 0:00:55.8]} 26. f3 {[%clk 0:00:24.4]}
26... Rc8 {[%clk 0:00:53.4]} 27. Rxa4 {[%clk 0:00:23]} 27... Nh5 {[%clk
0:00:52.8]} 28. Rc1 {[%clk 0:00:20.4]} 28... Ng3+ {[%clk 0:00:52.9]} 29. Kf2
{[%clk 0:00:20.5]} 29... f5 {[%clk 0:00:52.2]} 30. e5 {[%clk 0:00:18.9]} 30...
Rd8 {[%clk 0:00:47.8]} 31. Ra2 {[%clk 0:00:18]} 31... Rc8 {[%clk 0:00:41.6]} 32.
Na5 {[%clk 0:00:16.6]} 32... b6 {[%clk 0:00:35.4]} 33. Nc6 {[%clk 0:00:16.4]}
33... g5 {[%clk 0:00:25.2]} 34. c4 {[%clk 0:00:14.2]} 34... g4 {[%clk
0:00:24.2]} 35. Ra7 {[%clk 0:00:13.2]} 35... Kh8 {[%clk 0:00:18.9]} 36. hxg4
{[%clk 0:00:11.6]} 36... fxg4 {[%clk 0:00:18.9]} 37. fxg4 {[%clk 0:00:11.9]}
37... Ne4+ {[%clk 0:00:19.2]} 38. Kf3 {[%clk 0:00:12.2]} 38... Ng5+ {[%clk
0:00:16.4]} 39. Kxf4 {[%clk 0:00:12.4]} 39... Rf8+ {[%clk 0:00:16.2]} 40. Ke3
{[%clk 0:00:12.5]} 40... Rfe8 {[%clk 0:00:15.2]} 41. Rh1 {[%clk 0:00:11.5]}
41... Rf8 {[%clk 0:00:12]} 42. Rh5 {[%clk 0:00:11]} 42... Rg6 {[%clk 0:00:12.3]}
43. Kd4 {[%clk 0:00:09.7]} 43... Rf4+ {[%clk 0:00:12.1]} 44. Kc3 {[%clk
0:00:09.3]} 44... Rxg4 {[%clk 0:00:12.6]} 45. Rb7 {[%clk 0:00:08.4]} 45... Rxg2
{[%clk 0:00:12.5]} 46. Rxb6 {[%clk 0:00:07.4]} 46... Rg3+ {[%clk 0:00:13]} 47.
Kb4 {[%clk 0:00:07.6]} 47... Ne4 {[%clk 0:00:12.8]} 48. c5 {[%clk 0:00:06.8]}
48... R3g4 {[%clk 0:00:12.3]} 49. Nd4 {[%clk 0:00:06.6]} 49... Rxb6 {[%clk
0:00:07.9]} 50. cxb6 {[%clk 0:00:07.5]} 50... Nd2 {[%clk 0:00:07.7]} 51. Ka5
{[%clk 0:00:08.2]} 51... Rxd4 {[%clk 0:00:07.5]} 52. Ka6 {[%clk 0:00:09.1]}
52... Rd8 {[%clk 0:00:07.8]} 53. b7 {[%clk 0:00:09.8]} 53... Nc4 {[%clk
0:00:07.7]} 54. Rxh6+ {[%clk 0:00:10.3]} 54... Kg7 {[%clk 0:00:07.6]} 55. Rc6
{[%clk 0:00:11.2]} 55... Nxe5 {[%clk 0:00:06.8]} 56. Rc8 {[%clk 0:00:11.6]}
56... Rd6+ {[%clk 0:00:07.2]} 57. Ka7 {[%clk 0:00:10.7]} 57... Nd7 {[%clk
0:00:05.9]} 58. Rc7 {[%clk 0:00:09.5]} 58... Kf6 {[%clk 0:00:05.7]} 59. Rxd7
{[%clk 0:00:09.7]} 59... Rxd7 {[%clk 0:00:05.6]} 60. Ka8 {[%clk 0:00:10.6]}
60... Rd5 {[%clk 0:00:04.3]} 61. b8=Q {[%clk 0:00:10.9]} 61... Ke6 {[%clk
0:00:02.8]} 62. Qg8+ {[%clk 0:00:10.2]} 62... Kd6 {[%clk 0:00:02.7]} 63. Qxd5+
{[%clk 0:00:10.8]} 63... Kxd5 {[%clk 0:00:03.2]} 64. b6 {[%clk 0:00:11.7]} 64...
Kc6 {[%clk 0:00:03.6]} 65. b7 {[%clk 0:00:12.6]} 65... Kb6 {[%clk 0:00:04.1]}
66. b8=Q+ {[%clk 0:00:12.8]} 66... Ka6 {[%clk 0:00:05]} 67. Qb2 {[%clk
0:00:12.1]} 1-0